fUSD/lending_fUSD_20260503
["ID","MTS","AMOUNT","RATE_DAILY","PERIOD"]
[421517119,1777807838000,-321.3122305,0.0002063,2]
[421517125,1777807838000,-435.48481121,0.0002063,2]
[421517126,1777807838000,-364.24508816,0.0002063,2]
[421517124,1777807838000,-199.81010063,0.0002063,2]
[421517128,1777807838000,-172.49,0.00020631,2]
[421517123,1777807838000,-290.570001,0.0002063,2]
[421517122,1777807838000,-175.61989837,0.0002063,2]
[421517121,1777807838000,-312.36670557,0.0002063,2]
[421517139,1777807838000,-368.59,0.00023788,2]
[421517120,1777807838000,-300.0,0.0002063,2]
[421517118,1777807838000,-486.30263689,0.0002063,2]
[421517127,1777807838000,-171.75491184,0.0002063,2]
[421517141,1777807838000,-368.59,0.00025487,2]
[421517140,1777807838000,-368.59,0.00024637,2]
[421517142,1777807838000,-157.12,0.00025769,2]
[421517165,1777807838000,-28.35124148,0.000311,7]
[421517159,1777807838000,-168.60685308,0.00029475,2]
[421517162,1777807838000,-157.12,0.00030455,2]
[421517161,1777807838000,-283.81557538,0.00029806,2]
[421517160,1777807838000,-368.59,0.00029735,2]
[421517163,1777807838000,-368.59,0.00030584,2]
[421517157,1777807838000,-403.5,0.000282,7]
[421517158,1777807838000,-368.59,0.00028885,2]
[421517155,1777807838000,-642.62509455,0.000282,7]
[421517156,1777807838000,-2942.39322361,0.000282,7]
[421517154,1777807838000,-3501.9428733,0.000282,7]
[421517164,1777807838000,-172.49,0.00030946,2]
[421517147,1777807838000,-542.0,0.00027137,2]
[421517144,1777807838000,-368.59,0.00026337,2]
[421517153,1777807838000,-10962.09880854,0.000282,7]
[421517143,1777807838000,-177.21288648,0.00025953,2]
[421517151,1777807838000,-368.59,0.00028036,2]
[421517146,1777807838000,-1500.0,0.000271,7]
[421517148,1777807838000,-368.59,0.00027186,2]
[421517149,1777807838000,-283.81557538,0.00027487,2]
[421517150,1777807838000,-1663.0,0.00027918,2]
[421517145,1777807838000,-168.60685308,0.00026494,2]
[421517152,1777807838000,-157.12,0.00028112,2]
[421517272,1777807840000,-283.81557538,0.00034444,2]
[421517266,1777807840000,-168.60685308,0.00032456,2]
[421517268,1777807840000,-10075.4215317,0.00032877,120]
[421517273,1777807840000,-1203.1463117,0.00034689,2]
[421517269,1777807840000,-155.0,0.0003316,30]
[421517267,1777807840000,-157.12,0.00032797,2]
[421517265,1777807840000,-58.00212757,0.00032423,7]
[421517260,1777807840000,-368.59,0.00031434,2]
[421517263,1777807840000,-368.59,0.00032284,2]
[421517262,1777807840000,-155.0,0.0003216,30]
[421517261,1777807840000,-283.81557538,0.00032125,2]
[421517259,1777807840000,-177.21288648,0.00031374,2]
[421517257,1777807840000,-1971.64875852,0.000311,7]
[421517258,1777807840000,-155.0,0.0003116,30]
[421517271,1777807840000,-155.0,0.0003416,30]
[421517264,1777807840000,-483.99787243,0.00032423,7]
[421517274,1777807840000,-260.31400254,0.00034989,7]
[421517280,1777807840000,-41.966035,0.00034989,7]
[421517276,1777807840000,-297.16245739,0.00034989,7]
[421517270,1777807840000,-262.0755365,0.000332,120]
[421517292,1777807840000,-762.577,0.00036521,2]
[421517291,1777807840000,-6880.07296688,0.00036521,2]
[421517290,1777807840000,-403.5,0.000361,30]
[421517289,1777807840000,-6746.22981931,0.000361,7]
[421517288,1777807840000,-881.82151965,0.000361,7]
[421517285,1777807840000,-160.0,0.0003516,30]
[421517286,1777807840000,-168.60685308,0.00035437,2]
[421517287,1777807840000,-10421.00866104,0.000361,7]
[421517283,1777807840000,-2000.0,0.000351,7]
[421517281,1777807840000,-226.35864313,0.00034989,7]
[421517282,1777807840000,-266.06907754,0.00034989,7]
[421517278,1777807840000,-235.99315429,0.00034989,7]
[421517275,1777807840000,-285.12649956,0.00034989,7]
[421517279,1777807840000,-222.1270172,0.00034989,7]
[421517277,1777807840000,-186.26583896,0.00034989,7]
[421517284,1777807840000,-157.12,0.0003514,2]
[421517293,1777807841000,-13053.10453912,0.00036521,2]
[421517294,1777807841000,-283.81557538,0.00036762,2]
[421517298,1777807841000,-542.0,0.0003771,13]
[421517297,1777807841000,-1075.57876563,0.00037539,2]
[421517296,1777807841000,-157.12,0.00037483,2]
[421517299,1777807841000,-209.13859058,0.00037955,5]
[421517295,1777807841000,-177.21288648,0.00036796,2]
[421517300,1777807842000,394.85995972,7.888e-05,2]
[421517302,1777807843000,-563.86140942,0.00037955,5]
[421517305,1777807843000,-168.60685308,0.00038419,2]
[421517303,1777807843000,-683.0,0.00037955,5]
[421517307,1777807843000,-1495.186,0.000385,120]
[421517304,1777807843000,-734.17,0.00038359,2]
[421517310,1777807843000,-226686.80973731,0.000387,2]
[421517311,1777807843000,-1979.13738795,0.000387,2]
[421517308,1777807843000,-1495.18,0.000385,120]
[421517309,1777807843000,-200.0,0.00038647,7]
[421517312,1777807843000,-451.67652715,0.00037539,2]
[421517306,1777807843000,-1495.186,0.000385,120]
[421517457,1777807870000,846.82,0.000115,2]
[421517467,1777808800000,-400.0,0.00017839,2]
[421517468,1777808800000,-178.8825034,0.00017839,2]
[421517507,1777809032000,-1500.0,0.000271,7]
[421517508,1777809032000,-542.0,0.00027137,2]
[421517506,1777809032000,-154.47,0.00026073,2]
[421517509,1777809032000,-154.47,0.00027445,2]
[421517510,1777809032000,-154.47,0.00028818,2]
[421517512,1777809032000,-2000.0,0.000311,7]
[421517516,1777809032000,-239.89106315,0.000316,2]
[421517514,1777809032000,-154.0,0.00031156,30]
[421517496,1777809032000,-558.73576472,0.00019622,2]
[421517515,1777809032000,-154.47,0.00031562,2]
[421517517,1777809032000,-159.0,0.00032156,30]
[421517511,1777809032000,-154.47,0.0003019,2]
[421517503,1777809032000,-1000.0,0.000232,7]
[421517498,1777809032000,-2778.52921612,0.0002,2]
[421517505,1777809032000,-154.47,0.00024701,2]
[421517500,1777809032000,-162.45035992,0.00021301,2]
[421517501,1777809032000,-154.47,0.00021956,2]
[421517499,1777809032000,-154.47,0.00020584,2]
[421517502,1777809032000,-372.46,0.00022562,2]
[421517497,1777809032000,-300.0,0.00019622,2]
[421517495,1777809032000,-641.26423528,0.00019622,2]
[421517491,1777809032000,-154.47,0.00017839,2]
[421517494,1777809032000,-154.47,0.00019212,2]
[421517492,1777809032000,-431.05,0.00018856,2]
[421517490,1777809032000,-252.74576472,0.00017839,2]
[421517493,1777809032000,-500.0,0.000192,7]
[421517489,1777809032000,-147.25423528,0.00017839,2]
[421517504,1777809032000,-154.47,0.00023329,2]
[421517518,1777809032000,-500.0,0.00032325,2]
[421517513,1777809032000,-255.0,0.000311,2]
[421517519,1777809032000,-207.29,0.00032637,2]
[421517546,1777809032000,-173.08,0.000377,7]
[421517548,1777809032000,-1324.170625,0.0003795,15]
[421517547,1777809032000,-181.15,0.00037742,120]
[421517545,1777809032000,-500.0,0.000377,7]
[421517544,1777809032000,-500.0,0.000377,7]
[421517542,1777809032000,-500.0,0.000377,7]
[421517549,1777809032000,-223.48,0.00038034,30]
[421517543,1777809032000,-500.0,0.000377,7]
[421517539,1777809032000,-500.0,0.000377,7]
[421517540,1777809032000,-500.0,0.000377,7]
[421517537,1777809032000,-553.94,0.000377,7]
[421517538,1777809032000,-500.0,0.000377,7]
[421517532,1777809032000,-154.47,0.00035679,2]
[421517535,1777809032000,-500.0,0.000377,7]
[421517521,1777809032000,-154.47,0.00032934,2]
[421517536,1777809032000,-500.0,0.000377,7]
[421517531,1777809032000,-2000.0,0.000351,7]
[421517522,1777809032000,-1000.0,0.00033602,120]
[421517523,1777809032000,-154.47,0.00034307,2]
[421517520,1777809032000,-2000.0,0.00032651,2]
[421517527,1777809032000,-150.0,0.00034989,30]
[421517525,1777809032000,-305.0,0.00034462,30]
[421517524,1777809032000,-820.0,0.00034462,30]
[421517528,1777809032000,-215.32265254,0.00034989,7]
[421517529,1777809032000,-150.0,0.00034989,7]
[421517530,1777809032000,-150.0,0.00034989,7]
[421517533,1777809032000,-207.29,0.00036716,2]
[421517534,1777809032000,-327.47616456,0.00037539,2]
[421517541,1777809032000,-500.0,0.000377,7]
[421517526,1777809032000,-542.0,0.00034689,10]
[421517556,1777809033000,-240.434187,0.00038122,21]
[421517550,1777809033000,-1000.0,0.00038096,2]
[421517553,1777809033000,-1952.4577545,0.00038097,2]
[421517552,1777809033000,-155.1905008,0.00038097,2]
[421517554,1777809033000,-5860.4980692,0.00038097,2]
[421517560,1777809033000,-700.0,0.000386,14]
[421517551,1777809033000,-873.2805039,0.00038097,2]
[421517559,1777809033000,-1324.948,0.000385,120]
[421517557,1777809033000,-367.08,0.00038359,2]
[421517555,1777809033000,-240.434187,0.00038122,21]
[421517558,1777809033000,-152.0,0.00038437,30]
[421517563,1777809033000,-1430.66631438,0.00038698,2]
[421517561,1777809033000,-43894.3826,0.000386,2]
[421517562,1777809033000,-2479.7231783,0.00038698,2]
[421517564,1777809033000,-378.35139607,0.00038698,2]
[421517573,1777809038000,-607.0,0.00038698,30]
[421517572,1777809038000,-457.33494652,0.00037539,2]
[421517574,1777809038000,-1899.19971125,0.00038698,2]
[421517577,1777809038000,-1203.0055,0.00038699,2]
[421517578,1777809038000,-711.60358426,0.00038699,2]
[421517576,1777809038000,-2047.64113494,0.00038698,2]
[421517579,1777809038000,-500.0,0.00038699,2]
[421517581,1777809038000,-410.0850894,0.00038699,2]
[421517580,1777809038000,-700.0,0.00038699,2]
[421517582,1777809038000,-317.0,0.00038699,2]
[421517575,1777809038000,-2349.26086506,0.00038698,2]
[421517716,1777809041000,-304.88996435,0.00037539,2]
[421517723,1777809041000,-237.0280528,0.00038699,2]
[421517717,1777809041000,-2361.31132634,0.00038699,2]
[421517725,1777809041000,-58790.11442565,0.000387,2]
[421517724,1777809041000,-305.0,0.00038699,30]
[421517721,1777809041000,-168.61207209,0.00038699,2]
[421517718,1777809041000,-193.4404,0.00038699,2]
[421517720,1777809041000,-177.21288648,0.00038699,2]
[421517722,1777809041000,-229.05923736,0.00038699,2]
[421517719,1777809041000,-1421.655,0.00038699,52]
[421517727,1777809041000,-13477.48796778,0.000387,2]
[421517728,1777809041000,-5923.17225353,0.000387,2]
[421517726,1777809041000,-9563.38671446,0.000387,2]
[421517745,1777809043000,-7331.82243929,0.000387,2]
[421517746,1777809043000,-1071.18168082,0.000387,2]
[421517744,1777809043000,-508.14994058,0.00037539,2]
[421517748,1777809043000,-639.60781927,0.000387,2]
[421517749,1777809043000,-8610.01534746,0.000387,2]
[421517747,1777809043000,-64.32027816,0.000387,2]
[421517750,1777809043000,-325.58015431,0.000387,2]
[421517752,1777809044000,-603.90683858,0.000387,2]
[421517753,1777809044000,-7858.94,0.000387,2]
[421517751,1777809044000,-4654.06977825,0.000387,2]
[421517769,1777809046000,-2581.79896986,0.000387,2]
[421517768,1777809046000,-5289.72152255,0.000387,2]
[421517767,1777809046000,-122041.94736338,0.000387,2]
[421517766,1777809046000,-56224.14981102,0.000387,2]
[421517765,1777809046000,-502.0,0.000387,2]
[421517764,1777809046000,-3883.0,0.000387,2]
[421517784,1777809482000,193.0,0.00029741,120]
[421517785,1777809728000,3568.811991,7.945e-05,2]
[421517802,1777809908000,2071.93315,7.945e-05,2]
[421517804,1777809938000,-500.0,0.000192,7]
[421517807,1777810010000,-250.0,0.0002112,2]
[421517808,1777810010000,-1023.0739616,0.0002116,2]
[421517806,1777810010000,-154.54563088,0.00019481,2]
[421517805,1777810010000,-431.0,0.00019481,2]
[421517812,1777810173000,-353.97562008,0.000212,2]
[421517813,1777810173000,-483.79386433,0.000232,7]
[421517811,1777810173000,-369.0,0.0002116,2]
[421517810,1777810173000,-1476.9260384,0.0002116,2]
[421517814,1777810184000,153.55,0.0001592,2]
[421517816,1777810184000,153.55,0.0001791,2]
[421517815,1777810184000,153.55,0.00016915,2]
[421517836,1777810237000,-153.55,0.000199,2]
[421517835,1777810237000,-153.55,0.00018905,2]
[421517838,1777810237000,-114.95358703,0.00020895,2]
[421517837,1777810237000,-38.59641297,0.00020895,2]
[421517840,1777810237000,-139.94281407,0.00022885,2]
[421517839,1777810237000,-153.55,0.0002189,2]
[421517842,1777810237000,-516.20613567,0.000232,7]
[421517841,1777810237000,-13.60718593,0.00022885,2]
[421517843,1777810237000,-78.1866784,0.00023232,2]
[421517845,1777810237000,-1907.62547957,0.00023232,2]
[421517844,1777810237000,-393.5,0.00023232,2]
[421517990,1777810240000,-420.0,0.00029332,2]
[421517985,1777810240000,-153.55,0.00028855,2]
[421517983,1777810240000,-459.34216635,0.00027137,2]
[421517986,1777810240000,-150.99,0.00029009,2]
[421517994,1777810240000,-450.0,0.00029835,2]
[421517984,1777810240000,-153.55,0.0002786,2]
[421517992,1777810240000,-211.43,0.00029473,2]
[421517982,1777810240000,-405.0,0.00027137,2]
[421517979,1777810240000,-401.0,0.00027137,2]
[421517977,1777810240000,-1500.0,0.000271,7]
[421517980,1777810240000,-411.0,0.00027137,2]
[421517969,1777810240000,-153.55,0.00024875,2]
[421517978,1777810240000,-300.0,0.00027135,2]
[421517975,1777810240000,-1200.0,0.00027098,2]
[421517974,1777810240000,-1200.0,0.00027098,2]
[421517976,1777810240000,-300.0,0.00027099,2]
[421517973,1777810240000,-393.7806,0.00027037,2]
[421517972,1777810240000,-153.55,0.00026865,2]
[421517971,1777810240000,-1565.220585,0.0002673,2]
[421517970,1777810240000,-153.55,0.0002587,2]
[421517968,1777810240000,-153.55,0.0002388,2]
[421517993,1777810240000,-150.0,0.00029534,2]
[421517966,1777810240000,-120.68784203,0.00023232,2]
[421517967,1777810240000,-250.0,0.00023276,2]
[421517981,1777810240000,-411.0,0.00027137,2]
[421517991,1777810240000,-1680.0,0.00029422,2]
[421518000,1777810240000,-456.3318445,0.000311,7]
[421517988,1777810240000,-747.3,0.00029009,10]
[421518019,1777810240000,-5557.62130061,0.00034845,2]
[421518018,1777810240000,-317.35826982,0.00034845,2]
[421518012,1777810240000,-823.0,0.00034274,2]
[421518009,1777810240000,-399.0,0.00033362,2]
[421518006,1777810240000,-2351.0,0.00031946,3]
[421518013,1777810240000,-162.45035992,0.00034526,2]
[421518011,1777810240000,-405.0,0.0003404,2]
[421518016,1777810240000,-19051.51052128,0.00034845,8]
[421517987,1777810240000,-9999.99,0.00029009,2]
[421518014,1777810240000,-3292.0,0.00034685,3]
[421518015,1777810240000,-320.27504438,0.00034835,2]
[421518008,1777810240000,-500.0,0.00032684,2]
[421518010,1777810240000,-2501.84,0.00033993,2]
[421518007,1777810240000,-884.89,0.00032519,2]
[421517989,1777810240000,-420.0,0.00029294,2]
[421518017,1777810240000,-1137139.29864536,0.00034845,2]
[421517997,1777810240000,-2004.65088239,0.00030137,120]
[421517995,1777810240000,-150.0,0.00029835,30]
[421517999,1777810240000,-2000.0,0.000311,7]
[421517996,1777810240000,-153.55,0.0002985,2]
[421518005,1777810240000,-153.55,0.0003184,2]
[421518004,1777810240000,-587.0,0.00031707,2]
[421518001,1777810240000,-624.0,0.00031506,30]
[421518003,1777810240000,-1000.0,0.00031702,120]
[421518002,1777810240000,-158.0,0.00031667,3]
[421517998,1777810240000,-153.55,0.00030845,2]
[421518033,1777810242000,-11623.83391486,0.00034845,2]
[421518035,1777810242000,-1412.25320625,0.00034845,2]
[421518034,1777810242000,-206.51328805,0.00034845,2]
[421518036,1777810242000,-1029.26477251,0.00034845,2]
[421518037,1777810242000,-707.3898016,0.00034845,2]
[421518039,1777810242000,-1559.0,0.0003485,30]
[421518040,1777810242000,-500.0,0.00034853,2]
[421518038,1777810242000,-14731.86000094,0.00034845,2]
[421518041,1777810242000,-382.68,0.00034883,120]
[421518044,1777810242000,-30812.4,0.00034945,2]
[421518051,1777810242000,-151.0,0.00034979,2]
[421518047,1777810242000,-151.0,0.00034979,2]
[421518042,1777810242000,-150.0,0.000349,2]
[421518050,1777810242000,-151.0,0.00034979,2]
[421518046,1777810242000,-151.0,0.00034979,2]
[421518049,1777810242000,-151.0,0.00034979,2]
[421518045,1777810242000,-160.17027394,0.00034945,2]
[421518052,1777810242000,-225.69443651,0.00034989,30]
[421518048,1777810242000,-151.0,0.00034979,2]
[421518043,1777810242000,-206.15331357,0.00034933,2]
[421518071,1777810243000,-206.15331354,0.00035719,2]
[421518072,1777810243000,-286.0,0.00035946,30]
[421518075,1777810243000,-381.13,0.000365,2]
[421518076,1777810243000,-206.15331354,0.00036504,2]
[421518074,1777810243000,-297.08935101,0.00036189,2]
[421518089,1777810243000,-183.54,0.00038359,2]
[421518073,1777810243000,-382.68,0.00036034,120]
[421518078,1777810243000,-1152.0,0.00037048,2]
[421518077,1777810243000,-382.68,0.00036609,120]
[421518070,1777810243000,-382.68,0.00035458,120]
[421518083,1777810243000,-382.68,0.0003776,120]
[421518069,1777810243000,-1559.0,0.00035398,30]
[421518063,1777810243000,-500.0,0.00034999,7]
[421518066,1777810243000,-1852.42,0.00035033,2]
[421518067,1777810243000,-2000.0,0.000351,7]
[421518062,1777810243000,-500.0,0.00034999,7]
[421518061,1777810243000,-500.0,0.00034999,7]
[421518088,1777810243000,-382.68,0.00038335,120]
[421518065,1777810243000,-398.34583495,0.00034999,7]
[421518064,1777810243000,-500.0,0.00034999,7]
[421518059,1777810243000,-500.0,0.00034999,7]
[421518058,1777810243000,-500.0,0.00034999,7]
[421518057,1777810243000,-1222.63711683,0.00034999,2]
[421518056,1777810243000,-1310.655,0.00034996,40]
[421518054,1777810243000,-150.00000001,0.00034989,7]
[421518055,1777810243000,-398.0,0.00034996,2]
[421518053,1777810243000,-150.0,0.00034989,7]
[421518060,1777810243000,-500.0,0.00034999,7]
[421518082,1777810243000,-541.0,0.0003766,3]
[421518068,1777810243000,-181.15,0.00035229,120]
[421518079,1777810243000,-382.68,0.00037184,120]
[421518109,1777810243000,-7407.141672,0.00038698,30]
[421518080,1777810243000,-206.15331354,0.0003729,2]
[421518103,1777810243000,-151.0,0.00038698,30]
[421518106,1777810243000,-1107.63007,0.00038698,30]
[421518107,1777810243000,-151.0,0.00038698,30]
[421518111,1777810243000,-257.24310481,0.00038698,30]
[421518105,1777810243000,-500.0,0.00038698,30]
[421518101,1777810243000,-1068.11,0.00038698,30]
[421518117,1777810243000,-6332.48484593,0.00038698,30]
[421518115,1777810243000,-1148.61238259,0.00038698,30]
[421518113,1777810243000,-500.0,0.00038698,30]
[421518102,1777810243000,-319.42183795,0.00038698,30]
[421518096,1777810243000,-151.0,0.00038698,30]
[421518098,1777810243000,-446.25081736,0.00038698,30]
[421518104,1777810243000,-518.5,0.00038698,30]
[421518099,1777810243000,-500.0,0.00038698,30]
[421518081,1777810243000,-155.46,0.00037394,2]
[421518097,1777810243000,-500.0,0.00038698,30]
[421518095,1777810243000,-6888.0,0.00038698,30]
[421518094,1777810243000,-1030.0,0.00038698,30]
[421518093,1777810243000,-200.0,0.00038698,30]
[421518091,1777810243000,-4437.2311375,0.00038668,2]
[421518092,1777810243000,-500.0,0.00038698,30]
[421518085,1777810243000,-150.0,0.00037818,120]
[421518090,1777810243000,-207.3995462,0.000386,2]
[421518084,1777810243000,-157.56533023,0.00037818,120]
[421518086,1777810243000,-500.0,0.00038,120]
[421518087,1777810243000,-206.15331354,0.00038076,2]
[421518100,1777810243000,-7142.856,0.00038698,30]
[421518124,1777810245000,-542.0,0.0003771,13]
[421518123,1777810245000,-542.0,0.00027137,2]
[421518126,1777810245000,-1348.72106793,0.00038698,30]
[421518125,1777810245000,-500.0,0.00038076,2]
[421518146,1777810246000,-151.0,0.00038698,30]
[421518148,1777810246000,-151.0,0.00038698,30]
[421518147,1777810246000,-500.0,0.00038698,30]
[421518152,1777810246000,-151.0,0.00038698,30]
[421518149,1777810246000,-500.0,0.00038698,30]
[421518158,1777810246000,-465.1449807,0.00038698,30]
[421518153,1777810246000,-500.0,0.00038698,30]
[421518151,1777810246000,-1000.0,0.00038698,30]
[421518144,1777810246000,-151.0,0.00038698,30]
[421518154,1777810246000,-151.0,0.00038698,30]
[421518156,1777810246000,-151.0,0.00038698,30]
[421518157,1777810246000,-34.8550193,0.00038698,30]
[421518155,1777810246000,-1000.0,0.00038698,30]
[421518145,1777810246000,-500.0,0.00038698,30]
[421518150,1777810246000,-151.0,0.00038698,30]
[421518143,1777810246000,-500.0,0.00038698,30]
[421518127,1777810246000,-151.0,0.00038698,30]
[421518142,1777810246000,-151.0,0.00038698,30]
[421518161,1777810246000,-151.0,0.00038698,30]
[421518128,1777810246000,-620.0,0.00038698,30]
[421518129,1777810246000,-500.0,0.00038698,30]
[421518130,1777810246000,-7965.41053268,0.00038698,30]
[421518131,1777810246000,-151.0,0.00038698,30]
[421518133,1777810246000,-1191.11104075,0.00038698,30]
[421518140,1777810246000,-213.23968075,0.00038698,30]
[421518132,1777810246000,-642.94,0.00038698,30]
[421518134,1777810246000,-500.0,0.00038698,30]
[421518137,1777810246000,-151.0,0.00038698,30]
[421518138,1777810246000,-269.19212107,0.00038698,30]
[421518136,1777810246000,-8260.13072239,0.00038698,30]
[421518139,1777810246000,-1235.18214925,0.00038698,30]
[421518141,1777810246000,-500.0,0.00038698,30]
[421518135,1777810246000,-200.0,0.00038698,30]
[421518165,1777810246000,-500.0,0.00038698,30]
[421518187,1777810246000,-500.0,0.00038698,30]
[421518159,1777810246000,-151.0,0.00038698,30]
[421518191,1777810246000,-339.63393991,0.00038698,30]
[421518182,1777810246000,-500.0,0.00038698,30]
[421518183,1777810246000,-500.0,0.00038698,30]
[421518184,1777810246000,-151.0,0.00038698,30]
[421518181,1777810246000,-151.0,0.00038698,30]
[421518180,1777810246000,-203.86484254,0.00038698,30]
[421518192,1777810246000,-170.10763838,0.00038698,30]
[421518185,1777810246000,-275.10927444,0.00038698,30]
[421518164,1777810246000,-151.0,0.00038698,30]
[421518196,1777810246000,-168.3888056,0.00038698,30]
[421518199,1777810246000,-7392.50000308,0.000387,2]
[421518197,1777810246000,-89388.24763766,0.000387,2]
[421518198,1777810246000,-41476.23565163,0.000387,2]
[421518194,1777810246000,-156.587,0.00038698,30]
[421518193,1777810246000,-151.0,0.00038698,30]
[421518190,1777810246000,-500.0,0.00038698,30]
[421518195,1777810246000,-162.380719,0.00038698,30]
[421518179,1777810246000,-260.287,0.00038698,30]
[421518160,1777810246000,-1001.55920439,0.00038698,30]
[421518162,1777810246000,-500.0,0.00038698,30]
[421518163,1777810246000,-151.0,0.00038698,30]
[421518166,1777810246000,-500.0,0.00038698,30]
[421518168,1777810246000,-151.0,0.00038698,30]
[421518171,1777810246000,-151.0,0.00038698,30]
[421518173,1777810246000,-151.0,0.00038698,30]
[421518169,1777810246000,-500.0,0.00038698,30]
[421518170,1777810246000,-500.0,0.00038698,30]
[421518175,1777810246000,-500.0,0.00038698,30]
[421518167,1777810246000,-151.0,0.00038698,30]
[421518172,1777810246000,-251.0,0.00038698,30]
[421518177,1777810246000,-151.0,0.00038698,30]
[421518176,1777810246000,-500.0,0.00038698,30]
[421518174,1777810246000,-151.0,0.00038698,30]
[421518189,1777810246000,-500.0,0.00038698,30]
[421518200,1777810264000,2931.0,0.000287,120]
[421518201,1777810265000,2931.0,0.000287,120]
[421518202,1777810265000,2931.0,0.000287,120]
[421518204,1777810265000,2931.0,0.000287,120]
[421518203,1777810265000,2931.0,0.000287,120]
[421518207,1777810266000,2931.0,0.000287,120]
[421518206,1777810266000,2931.0,0.000287,120]
[421518205,1777810266000,2931.0,0.000287,120]
[421518209,1777810267000,2932.621,0.000287,120]
[421518208,1777810267000,2931.0,0.000287,120]
[421518210,1777810568000,9553.990676,7.945e-05,2]
[421518213,1777810868000,500.0,0.000192,7]
[421518216,1777811341000,181.15,0.00029958,120]
[421518217,1777811359000,-161.03,0.00016666,2]
[421518220,1777811359000,-161.03,0.00018333,2]
[421518218,1777811359000,-256.0,0.00016666,2]
[421518219,1777811359000,-215.09763884,0.00018333,2]
[421518222,1777811405000,2147.90411428,0.00012,2]
[421518224,1777811405000,1894.84879326,0.00012,2]
[421518221,1777811405000,2106.27772248,0.00012,2]
[421518223,1777811405000,2159.30258246,0.00012,2]
[421518225,1777811405000,10000.01,0.00012,2]
[421518231,1777811405000,5000.01,0.00012,2]
[421518226,1777811405000,10000.01,0.00012,2]
[421518232,1777811405000,169347.68500153,0.00012,2]
[421518229,1777811405000,5000.01,0.00012,2]
[421518228,1777811405000,5000.01,0.00012,2]
[421518227,1777811405000,10000.01,0.00012,2]
[421518230,1777811405000,5000.01,0.00012,2]
[421518248,1777811431000,-266.97,0.000246,2]
[421518247,1777811431000,-161.03,0.00023332,2]
[421518244,1777811431000,-1043.27818543,0.00023199,2]
[421518245,1777811431000,-156.72181457,0.00023199,2]
[421518242,1777811431000,-207.53529149,0.00023099,2]
[421518243,1777811431000,-500.0,0.000231,2]
[421518238,1777811431000,-197.11241614,0.00021999,2]
[421518236,1777811431000,-161.03,0.00021666,2]
[421518237,1777811431000,-52.88758386,0.00021999,2]
[421518239,1777811431000,-525.44413228,0.000221,7]
[421518240,1777811431000,-2717.57010845,0.000221,2]
[421518241,1777811431000,-417.28362312,0.000221,2]
[421518235,1777811431000,-161.03,0.00019999,2]
[421518246,1777811431000,-1000.0,0.000232,7]
[421518249,1777811432000,-161.03,0.00024999,2]
[421518250,1777811432000,-1200.0,0.00025295,2]
[421518254,1777811432000,-416.07694567,0.000271,7]
[421518251,1777811432000,-161.03,0.00026666,2]
[421518253,1777811432000,-547.40244283,0.000271,7]
[421518252,1777811432000,-266.97,0.0002706,2]
[421518268,1777811437000,-4218.52304916,0.00029925,2]
[421518263,1777811437000,-448.19550184,0.00027137,2]
[421518264,1777811437000,-509.0,0.00027137,2]
[421518262,1777811437000,-94.80449816,0.00027137,2]
[421518265,1777811437000,-161.03,0.00028332,2]